[Event "Early-Titled-Tuesday-Blitz-October-17-2023"]
[Site "Chess.com"]
[Date "2023.10.17"]
[Round "9"]
[White "MdSharifHossain"]
[Black "maracayo"]
[Result "0-1"]
[WhiteElo "2207"]
[BlackElo "2376"]
[TimeControl "180+1"]
[EndTime "9:48:01 PDT"]
[Termination "maracayo won by resignation"]

1. e4 {[%clk 0:02:38.9]} 1... d6 {[%clk 0:02:59]} 2. d4 {[%clk 0:02:38.8]} 2...
Nf6 {[%clk 0:02:58.3]} 3. Nc3 {[%clk 0:02:38.4]} 3... c6 {[%clk 0:02:58.2]} 4.
Be3 {[%clk 0:02:36.5]} 4... Qa5 {[%clk 0:02:57.4]} 5. f3 {[%clk 0:02:35]} 5...
e5 {[%clk 0:02:56.2]} 6. Ne2 {[%clk 0:02:31.4]} 6... Be7 {[%clk 0:02:55.4]} 7.
Qd2 {[%clk 0:02:29.6]} 7... O-O {[%clk 0:02:54.5]} 8. O-O-O {[%clk 0:02:29.2]}
8... b5 {[%clk 0:02:54]} 9. a3 {[%clk 0:02:21.6]} 9... b4 {[%clk 0:02:46.8]} 10.
Na2 {[%clk 0:02:21.2]} 10... c5 {[%clk 0:02:45.3]} 11. d5 {[%clk 0:02:11.7]}
11... Nbd7 {[%clk 0:02:19.8]} 12. Kb1 {[%clk 0:02:10.4]} 12... Rb8 {[%clk
0:02:17.9]} 13. Nec1 {[%clk 0:02:08.6]} 13... Qa4 {[%clk 0:01:57.1]} 14. axb4
{[%clk 0:02:06.3]} 14... cxb4 {[%clk 0:01:56]} 15. Nb3 {[%clk 0:02:00.8]} 15...
Rd8 {[%clk 0:01:41.6]} 16. g4 {[%clk 0:01:50.9]} 16... Nc5 {[%clk 0:01:40.6]}
17. Bc4 {[%clk 0:01:50.3]} 17... Ba6 {[%clk 0:01:33.7]} 18. Qe2 {[%clk
0:01:46.2]} 18... Bxc4 {[%clk 0:01:05.7]} 19. Qxc4 {[%clk 0:01:47.1]} 19... Nfd7
{[%clk 0:00:50.7]} 20. Bxc5 {[%clk 0:01:38.3]} 20... dxc5 {[%clk 0:00:48.7]} 21.
d6 {[%clk 0:01:34.5]} 21... Bf8 {[%clk 0:00:48.4]} 22. Rd5 {[%clk 0:01:29.3]}
22... Nb6 {[%clk 0:00:41.2]} 23. Nxc5 {[%clk 0:01:22.8]} 23... Qe8 {[%clk
0:00:24.7]} 24. d7 {[%clk 0:01:20.6]} 24... Qe7 {[%clk 0:00:20.7]} 25. Qd3
{[%clk 0:00:44.3]} 25... Nxd5 {[%clk 0:00:21]} 26. Qxd5 {[%clk 0:00:44.2]} 26...
Qxc5 {[%clk 0:00:20.5]} 27. Rd1 {[%clk 0:00:42.6]} 27... Qxd5 {[%clk 0:00:19.9]}
28. Rxd5 {[%clk 0:00:42.4]} 28... Rb7 {[%clk 0:00:19.1]} 29. Rxe5 {[%clk
0:00:42.5]} 29... Rbxd7 {[%clk 0:00:18.5]} 30. b3 {[%clk 0:00:41.4]} 30... Rd1+
{[%clk 0:00:17.4]} 31. Kb2 {[%clk 0:00:41.2]} 31... g6 {[%clk 0:00:18.3]} 32.
Ra5 {[%clk 0:00:38.3]} 32... Bg7+ {[%clk 0:00:18.4]} 33. e5 {[%clk 0:00:38.4]}
33... R1d5 {[%clk 0:00:18.8]} 34. Rxd5 {[%clk 0:00:36.4]} 34... Rxd5 {[%clk
0:00:19.5]} 35. f4 {[%clk 0:00:37.1]} 35... a5 {[%clk 0:00:18.9]} 36. Nc1 {[%clk
0:00:34.9]} 36... g5 {[%clk 0:00:17.4]} 37. Nd3 {[%clk 0:00:35.8]} 37... gxf4
{[%clk 0:00:17.2]} 38. Nxf4 {[%clk 0:00:33.4]} 38... Bxe5+ {[%clk 0:00:16.9]}
39. Kc1 {[%clk 0:00:33.2]} 39... Bxf4+ {[%clk 0:00:17]} 0-1

[Event "Early-Titled-Tuesday-Blitz-October-17-2023"]
[Site "Chess.com"]
[Date "2023.10.17"]
[Round "9"]
[White "Sanyura"]
[Black "MdChess1734"]
[Result "1-0"]
[WhiteElo "2543"]
[BlackElo "2424"]
[TimeControl "180+1"]
[EndTime "9:48:03 PDT"]
[Termination "Sanyura won by checkmate"]

1. Nf3 {[%clk 0:03:00.9]} 1... Nf6 {[%clk 0:02:50.6]} 2. g3 {[%clk 0:03:01.8]}
2... b5 {[%clk 0:02:46.4]} 3. Bg2 {[%clk 0:03:01.5]} 3... Bb7 {[%clk 0:02:46.7]}
4. O-O {[%clk 0:03:01.9]} 4... e6 {[%clk 0:02:47.4]} 5. d4 {[%clk 0:02:57.1]}
5... Be7 {[%clk 0:02:47.8]} 6. a4 {[%clk 0:02:53.5]} 6... a6 {[%clk 0:02:41.6]}
7. Nbd2 {[%clk 0:02:50.6]} 7... O-O {[%clk 0:02:40.1]} 8. Nb3 {[%clk 0:02:50.4]}
8... d6 {[%clk 0:02:40.5]} 9. Re1 {[%clk 0:02:38.4]} 9... Nbd7 {[%clk
0:02:39.7]} 10. Bf1 {[%clk 0:02:33.5]} 10... c5 {[%clk 0:02:19.1]} 11. Bd2
{[%clk 0:02:17.3]} 11... c4 {[%clk 0:01:43.9]} 12. Na5 {[%clk 0:02:13.1]} 12...
Bd5 {[%clk 0:01:42.6]} 13. Ng5 {[%clk 0:02:10.3]} 13... h6 {[%clk 0:01:26.3]}
14. Nh3 {[%clk 0:01:58.7]} 14... Qb6 {[%clk 0:01:20.4]} 15. axb5 {[%clk
0:01:45.5]} 15... axb5 {[%clk 0:01:17.4]} 16. Nf4 {[%clk 0:01:37.2]} 16... Qxd4
{[%clk 0:01:11]} 17. Nxd5 {[%clk 0:01:27.8]} 17... Qxd5 {[%clk 0:01:01.5]} 18.
Bg2 {[%clk 0:01:27.6]} 18... Ne4 {[%clk 0:00:59.6]} 19. Bb4 {[%clk 0:01:16.9]}
19... Qf5 {[%clk 0:00:35.3]} 20. Nc6 {[%clk 0:01:12.5]} 20... Bf6 {[%clk
0:00:24.9]} 21. Rxa8 {[%clk 0:01:11.9]} 21... Rxa8 {[%clk 0:00:23.3]} 22. f3
{[%clk 0:01:06]} 22... Ng5 {[%clk 0:00:16.2]} 23. e4 {[%clk 0:01:01.4]} 23...
Qg6 {[%clk 0:00:13]} 24. f4 {[%clk 0:00:55.4]} 24... Nh7 {[%clk 0:00:11.4]} 25.
Qxd6 {[%clk 0:00:54.1]} 25... Nhf8 {[%clk 0:00:07.8]} 26. e5 {[%clk 0:00:53.6]}
26... Bd8 {[%clk 0:00:07.4]} 27. Nd4 {[%clk 0:00:41.3]} 27... Bb6 {[%clk
0:00:07.1]} 28. Bxa8 {[%clk 0:00:39.9]} 28... Qxc2 {[%clk 0:00:07]} 29. Bc6
{[%clk 0:00:38.4]} 29... Qxb2 {[%clk 0:00:05.2]} 30. Bxd7 {[%clk 0:00:38.7]}
30... Bxd4+ {[%clk 0:00:05.3]} 31. Kh1 {[%clk 0:00:38.9]} 31... Qf2 {[%clk
0:00:05.4]} 32. Qxf8+ {[%clk 0:00:34.8]} 32... Kh7 {[%clk 0:00:05.5]} 33. Bc6
{[%clk 0:00:35.7]} 33... c3 {[%clk 0:00:04.2]} 34. Be4+ {[%clk 0:00:35.4]} 34...
f5 {[%clk 0:00:01.3]} 35. exf6+ {[%clk 0:00:35.3]} 35... g6 {[%clk 0:00:01.1]}
36. Qg7# {[%clk 0:00:35.6]} 1-0

[Event "Early-Titled-Tuesday-Blitz-October-17-2023"]
[Site "Chess.com"]
[Date "2023.10.17"]
[Round "9"]
[White "zsoltkorpics"]
[Black "Langua_Chess"]
[Result "0-1"]
[WhiteElo "2342"]
[BlackElo "2498"]
[TimeControl "180+1"]
[EndTime "9:48:08 PDT"]
[Termination "Langua_Chess won on time"]

1. e4 {[%clk 0:03:00.9]} 1... e5 {[%clk 0:02:57.9]} 2. Nf3 {[%clk 0:02:57.7]}
2... Nc6 {[%clk 0:02:58.1]} 3. Bb5 {[%clk 0:02:56.5]} 3... a6 {[%clk 0:02:58.7]}
4. Ba4 {[%clk 0:02:56.2]} 4... Nf6 {[%clk 0:02:59.3]} 5. Nc3 {[%clk 0:02:55.1]}
5... b5 {[%clk 0:02:51.5]} 6. Bb3 {[%clk 0:02:55.3]} 6... d6 {[%clk 0:02:52.2]}
7. Ng5 {[%clk 0:02:48.3]} 7... d5 {[%clk 0:02:22.7]} 8. Nxd5 {[%clk 0:02:43.6]}
8... Be6 {[%clk 0:00:58.6]} 9. Nxf6+ {[%clk 0:02:10.2]} 9... Qxf6 {[%clk
0:00:57.5]} 10. Nxe6 {[%clk 0:02:09]} 10... fxe6 {[%clk 0:00:57.8]} 11. d3
{[%clk 0:01:30.8]} 11... Bc5 {[%clk 0:00:57.9]} 12. Be3 {[%clk 0:01:30.6]} 12...
Bxe3 {[%clk 0:00:26.2]} 13. fxe3 {[%clk 0:01:31.5]} 13... Rf8 {[%clk 0:00:26.2]}
14. Qe2 {[%clk 0:01:26.1]} 14... Qh4+ {[%clk 0:00:25.4]} 15. g3 {[%clk 0:01:25]}
15... Qh6 {[%clk 0:00:26.1]} 16. O-O-O {[%clk 0:01:20.9]} 16... Nd4 {[%clk
0:00:26.3]} 17. Qd2 {[%clk 0:01:16]} 17... Nf3 {[%clk 0:00:23.3]} 18. Qa5 {[%clk
0:01:11.7]} 18... Qxe3+ {[%clk 0:00:20.4]} 19. Kb1 {[%clk 0:01:11.9]} 19... Kd7
{[%clk 0:00:17.3]} 20. d4 {[%clk 0:01:04.3]} 20... exd4 {[%clk 0:00:16.4]} 21.
c3 {[%clk 0:00:26.2]} 21... Nd2+ {[%clk 0:00:07.5]} 22. Rxd2 {[%clk 0:00:10.4]}
22... Qxe4+ {[%clk 0:00:04.9]} 23. Bc2 {[%clk 0:00:09.3]} 23... Qxh1+ {[%clk
0:00:05.4]} 24. Rd1 {[%clk 0:00:09.9]} 24... Rf1 {[%clk 0:00:04.7]} 25. a4
{[%clk 0:00:03.2]} 25... Rxd1+ {[%clk 0:00:04.8]} 26. Bxd1 {[%clk 0:00:04.1]}
26... Qxd1+ {[%clk 0:00:05]} 27. Ka2 {[%clk 0:00:05]} 27... Qxa4+ {[%clk
0:00:05.8]} 28. Qxa4 {[%clk 0:00:04]} 28... bxa4 {[%clk 0:00:06.7]} 0-1

[Event "Early-Titled-Tuesday-Blitz-October-17-2023"]
[Site "Chess.com"]
[Date "2023.10.17"]
[Round "9"]
[White "Felix-Rose"]
[Black "Treasurechess777"]
[Result "0-1"]
[WhiteElo "2306"]
[BlackElo "2447"]
[TimeControl "180+1"]
[EndTime "9:48:10 PDT"]
[Termination "Treasurechess777 won on time"]

1. e4 {[%clk 0:03:00]} 1... Nf6 {[%clk 0:03:00.9]} 2. e5 {[%clk 0:02:59.5]} 2...
Nd5 {[%clk 0:03:01.2]} 3. d4 {[%clk 0:02:20.1]} 3... Nb6 {[%clk 0:03:00.7]} 4.
c4 {[%clk 0:02:19.3]} 4... d6 {[%clk 0:02:59.7]} 5. exd6 {[%clk 0:02:20.2]} 5...
cxd6 {[%clk 0:03:00.1]} 6. Nc3 {[%clk 0:02:20.9]} 6... g6 {[%clk 0:02:56]} 7.
Be3 {[%clk 0:02:09.9]} 7... Bg7 {[%clk 0:02:55.4]} 8. Rc1 {[%clk 0:02:09.9]}
8... O-O {[%clk 0:02:54.9]} 9. b3 {[%clk 0:02:09.8]} 9... Bf5 {[%clk 0:02:53.4]}
10. g4 {[%clk 0:02:02.2]} 10... Be6 {[%clk 0:02:48.1]} 11. h4 {[%clk 0:01:52]}
11... d5 {[%clk 0:02:16.2]} 12. c5 {[%clk 0:01:51.1]} 12... Nc8 {[%clk 0:02:12]}
13. h5 {[%clk 0:01:49.6]} 13... Nc6 {[%clk 0:02:03]} 14. Nh3 {[%clk 0:01:35.7]}
14... Qd7 {[%clk 0:01:49.9]} 15. f3 {[%clk 0:01:34]} 15... f5 {[%clk 0:01:14.5]}
16. g5 {[%clk 0:01:22.9]} 16... f4 {[%clk 0:01:06.4]} 17. Nxf4 {[%clk
0:01:22.3]} 17... Nxd4 {[%clk 0:00:59]} 18. Bxd4 {[%clk 0:01:15.3]} 18... Rxf4
{[%clk 0:00:58.7]} 19. Bxg7 {[%clk 0:01:15.2]} 19... Kxg7 {[%clk 0:00:59.6]} 20.
Ne2 {[%clk 0:01:03.8]} 20... Rf8 {[%clk 0:00:30.6]} 21. Qd4+ {[%clk 0:01:02.8]}
21... Kf7 {[%clk 0:00:29.5]} 22. hxg6+ {[%clk 0:00:56.2]} 22... hxg6 {[%clk
0:00:30.4]} 23. Nf4 {[%clk 0:00:51.2]} 23... Bf5 {[%clk 0:00:23.7]} 24. Rh7+
{[%clk 0:00:41.7]} 24... Ke8 {[%clk 0:00:23.6]} 25. a4 {[%clk 0:00:38.1]} 25...
a6 {[%clk 0:00:23.2]} 26. Nxd5 {[%clk 0:00:31.9]} 26... Kd8 {[%clk 0:00:08.5]}
27. Rd1 {[%clk 0:00:24]} 27... Ke8 {[%clk 0:00:05.6]} 0-1

[Event "Early-Titled-Tuesday-Blitz-October-17-2023"]
[Site "Chess.com"]
[Date "2023.10.17"]
[Round "9"]
[White "Smiechu"]
[Black "Let_it_be_1"]
[Result "0-1"]
[WhiteElo "2504"]
[BlackElo "2644"]
[TimeControl "180+1"]
[EndTime "9:48:13 PDT"]
[Termination "Let_it_be_1 won by checkmate"]

1. e4 {[%clk 0:03:00.9]} 1... e6 {[%clk 0:02:56.8]} 2. d4 {[%clk 0:03:00.5]}
2... d5 {[%clk 0:02:56.9]} 3. Bd3 {[%clk 0:03:01.1]} 3... dxe4 {[%clk
0:02:56.4]} 4. Bxe4 {[%clk 0:03:00.7]} 4... Nf6 {[%clk 0:02:56.8]} 5. Bf3 {[%clk
0:03:00.9]} 5... c5 {[%clk 0:02:57.5]} 6. Ne2 {[%clk 0:03:00.8]} 6... Nc6 {[%clk
0:02:57.5]} 7. Be3 {[%clk 0:03:00.5]} 7... cxd4 {[%clk 0:02:57.9]} 8. Nxd4
{[%clk 0:03:00]} 8... Ne5 {[%clk 0:02:58.3]} 9. Be2 {[%clk 0:02:59.5]} 9... Nd5
{[%clk 0:02:54.3]} 10. O-O {[%clk 0:02:48.5]} 10... Nxe3 {[%clk 0:02:44.8]} 11.
fxe3 {[%clk 0:02:48.7]} 11... Bc5 {[%clk 0:02:39.1]} 12. Bb5+ {[%clk 0:02:23.2]}
12... Bd7 {[%clk 0:02:39.1]} 13. Nxe6 {[%clk 0:02:11.1]} 13... Bxe3+ {[%clk
0:02:14.7]} 14. Kh1 {[%clk 0:02:10.8]} 14... fxe6 {[%clk 0:02:14.8]} 15. Qh5+
{[%clk 0:02:04.1]} 15... Ng6 {[%clk 0:02:14.5]} 16. Re1 {[%clk 0:01:37]} 16...
Qg5 {[%clk 0:01:55.9]} 17. Bxd7+ {[%clk 0:01:29.8]} 17... Kxd7 {[%clk
0:01:55.5]} 18. Qf3 {[%clk 0:01:30.4]} 18... Rac8 {[%clk 0:01:10.9]} 19. Nc3
{[%clk 0:01:01.9]} 19... Bb6 {[%clk 0:00:49.5]} 20. Qxb7+ {[%clk 0:00:35.8]}
20... Rc7 {[%clk 0:00:49.3]} 21. Qe4 {[%clk 0:00:36.3]} 21... Rc6 {[%clk
0:00:26.3]} 22. Rad1+ {[%clk 0:00:34.4]} 22... Kc7 {[%clk 0:00:20.4]} 23. Nb5+
{[%clk 0:00:32.2]} 23... Qxb5 {[%clk 0:00:19.6]} 24. b3 {[%clk 0:00:24.5]} 24...
Rd8 {[%clk 0:00:18.2]} 25. c4 {[%clk 0:00:23.1]} 25... Qf5 {[%clk 0:00:16]} 26.
Qe2 {[%clk 0:00:17.5]} 26... Rxd1 {[%clk 0:00:15.2]} 27. Rxd1 {[%clk 0:00:18.1]}
27... Rd6 {[%clk 0:00:15.5]} 28. Rc1 {[%clk 0:00:16.6]} 28... Qf4 {[%clk
0:00:14.6]} 29. Qe1 {[%clk 0:00:14.7]} 29... Rd2 {[%clk 0:00:14.4]} 30. Qf1
{[%clk 0:00:14.7]} 30... Qxf1+ {[%clk 0:00:13.6]} 31. Rxf1 {[%clk 0:00:15.6]}
31... Rf2 {[%clk 0:00:13.7]} 32. Re1 {[%clk 0:00:14.8]} 32... Nf4 {[%clk
0:00:14]} 33. g3 {[%clk 0:00:12.7]} 33... Re2 {[%clk 0:00:14.2]} 34. Rd1 {[%clk
0:00:12]} 34... Nh3 {[%clk 0:00:14.3]} 35. Rf1 {[%clk 0:00:11.4]} 35... Bg1
{[%clk 0:00:14.2]} 36. Rf7+ {[%clk 0:00:08.6]} 36... Kd6 {[%clk 0:00:13.3]} 37.
Rxg7 {[%clk 0:00:09.1]} 37... Rxh2# {[%clk 0:00:13.2]} 0-1

[Event "Early-Titled-Tuesday-Blitz-October-17-2023"]
[Site "Chess.com"]
[Date "2023.10.17"]
[Round "9"]
[White "pinguino120"]
[Black "Iskusnyh"]
[Result "0-1"]
[WhiteElo "2209"]
[BlackElo "2572"]
[TimeControl "180+1"]
[EndTime "9:48:17 PDT"]
[Termination "Iskusnyh won on time"]

1. e4 {[%clk 0:02:53.6]} 1... e6 {[%clk 0:02:59.5]} 2. d4 {[%clk 0:02:53.5]}
2... d5 {[%clk 0:02:59.6]} 3. e5 {[%clk 0:02:53.9]} 3... c5 {[%clk 0:02:59.2]}
4. c3 {[%clk 0:02:53.7]} 4... Nc6 {[%clk 0:02:59.7]} 5. Nf3 {[%clk 0:02:53.2]}
5... Nge7 {[%clk 0:03:00.2]} 6. dxc5 {[%clk 0:02:44.8]} 6... Ng6 {[%clk
0:02:55]} 7. b4 {[%clk 0:02:44.5]} 7... Ngxe5 {[%clk 0:02:54.1]} 8. Nxe5 {[%clk
0:02:43.7]} 8... Nxe5 {[%clk 0:02:53.1]} 9. Be2 {[%clk 0:02:34.4]} 9... Be7
{[%clk 0:02:51.9]} 10. O-O {[%clk 0:02:34.3]} 10... O-O {[%clk 0:02:49.4]} 11.
f4 {[%clk 0:02:30.5]} 11... Nc6 {[%clk 0:02:37.1]} 12. Be3 {[%clk 0:02:27.3]}
12... Bf6 {[%clk 0:02:30.4]} 13. b5 {[%clk 0:02:09.3]} 13... d4 {[%clk
0:02:21.7]} 14. cxd4 {[%clk 0:01:31.1]} 14... Nxd4 {[%clk 0:02:21.3]} 15. Bc4
{[%clk 0:01:23]} 15... Ne2+ {[%clk 0:02:10.3]} 16. Qxe2 {[%clk 0:01:22.4]} 16...
Bxa1 {[%clk 0:02:10.8]} 17. Nd2 {[%clk 0:01:20.7]} 17... Bd4 {[%clk 0:02:06.1]}
18. Nf3 {[%clk 0:01:14.2]} 18... Bxe3+ {[%clk 0:02:04.8]} 19. Qxe3 {[%clk
0:01:15.1]} 19... Qe7 {[%clk 0:01:56.3]} 20. Bd3 {[%clk 0:01:10.8]} 20... Bd7
{[%clk 0:01:38.3]} 21. Ne5 {[%clk 0:01:01.2]} 21... Rfc8 {[%clk 0:01:31.5]} 22.
c6 {[%clk 0:01:00.5]} 22... bxc6 {[%clk 0:01:27.4]} 23. bxc6 {[%clk 0:01:01.4]}
23... Bxc6 {[%clk 0:01:27]} 24. Nxc6 {[%clk 0:01:01]} 24... Rxc6 {[%clk
0:01:27]} 25. Bxh7+ {[%clk 0:00:58]} 25... Kxh7 {[%clk 0:01:17.2]} 26. Qe4+
{[%clk 0:00:58]} 26... g6 {[%clk 0:01:15.5]} 27. Qxc6 {[%clk 0:00:57.9]} 27...
Rd8 {[%clk 0:01:15.7]} 28. Qc3 {[%clk 0:00:50.2]} 28... Kg8 {[%clk 0:01:04.4]}
29. Rc1 {[%clk 0:00:35.9]} 29... Rd5 {[%clk 0:01:01.7]} 30. Qc8+ {[%clk
0:00:31.1]} 30... Kg7 {[%clk 0:01:01.2]} 31. Qc3+ {[%clk 0:00:30.1]} 31... Qf6
{[%clk 0:01:00.5]} 32. Qxf6+ {[%clk 0:00:21.5]} 32... Kxf6 {[%clk 0:01:01.4]}
33. Rc2 {[%clk 0:00:20.8]} 33... Ra5 {[%clk 0:00:58.1]} 34. Kf2 {[%clk
0:00:20.7]} 34... Ra3 {[%clk 0:00:58.2]} 35. g3 {[%clk 0:00:20.3]} 35... Kf5
{[%clk 0:00:57.9]} 36. Rb2 {[%clk 0:00:20.5]} 36... Kg4 {[%clk 0:00:57.6]} 37.
Rc2 {[%clk 0:00:18.2]} 37... Kh3 {[%clk 0:00:52.7]} 38. Kg1 {[%clk 0:00:18.4]}
38... a5 {[%clk 0:00:49.9]} 39. Kf1 {[%clk 0:00:17.2]} 39... a4 {[%clk
0:00:48.6]} 40. Ke1 {[%clk 0:00:16.6]} 40... f5 {[%clk 0:00:45.4]} 41. Kf1
{[%clk 0:00:15.7]} 41... Rd3 {[%clk 0:00:44.2]} 42. Ke2 {[%clk 0:00:14.9]} 42...
Rd6 {[%clk 0:00:41]} 43. Kf3 {[%clk 0:00:14.7]} 43... Rd3+ {[%clk 0:00:38.9]}
44. Ke2 {[%clk 0:00:14.9]} 44... Ra3 {[%clk 0:00:38.7]} 45. Kf1 {[%clk
0:00:13.9]} 45... Re3 {[%clk 0:00:35.5]} 0-1

[Event "Early-Titled-Tuesday-Blitz-October-17-2023"]
[Site "Chess.com"]
[Date "2023.10.17"]
[Round "9"]
[White "GM_Huschenbeth"]
[Black "BardArtem"]
[Result "1-0"]
[WhiteElo "2590"]
[BlackElo "2739"]
[TimeControl "180+1"]
[EndTime "9:48:19 PDT"]
[Termination "GM_Huschenbeth won by checkmate"]

1. e4 {[%clk 0:03:00.9]} 1... e5 {[%clk 0:02:58]} 2. Nf3 {[%clk 0:03:00.6]} 2...
Nc6 {[%clk 0:02:56.6]} 3. Bb5 {[%clk 0:03:00.2]} 3... Nge7 {[%clk 0:02:56.4]} 4.
Nc3 {[%clk 0:02:59.4]} 4... Ng6 {[%clk 0:02:55.9]} 5. d4 {[%clk 0:02:56]} 5...
Nxd4 {[%clk 0:02:55.9]} 6. Nxd4 {[%clk 0:02:56.9]} 6... exd4 {[%clk 0:02:56.1]}
7. Qxd4 {[%clk 0:02:57.7]} 7... c6 {[%clk 0:02:57]} 8. Be2 {[%clk 0:02:57.7]}
8... Qb6 {[%clk 0:02:56.6]} 9. Qd3 {[%clk 0:02:56.3]} 9... Be7 {[%clk
0:02:54.2]} 10. O-O {[%clk 0:02:56.1]} 10... O-O {[%clk 0:02:54.2]} 11. Be3
{[%clk 0:02:49.7]} 11... Qc7 {[%clk 0:02:47.8]} 12. f4 {[%clk 0:02:49.2]} 12...
d6 {[%clk 0:02:47.4]} 13. Rad1 {[%clk 0:02:43.1]} 13... Rd8 {[%clk 0:02:46.3]}
14. Kh1 {[%clk 0:02:40.2]} 14... Bf6 {[%clk 0:02:41]} 15. Bd4 {[%clk 0:02:20.4]}
15... Bxd4 {[%clk 0:02:34.2]} 16. Qxd4 {[%clk 0:02:21.3]} 16... Qe7 {[%clk
0:02:34.3]} 17. Bc4 {[%clk 0:02:04.5]} 17... Be6 {[%clk 0:02:17.2]} 18. Bb3
{[%clk 0:01:36.1]} 18... Bxb3 {[%clk 0:02:11.6]} 19. axb3 {[%clk 0:01:37]} 19...
Qf6 {[%clk 0:02:00.2]} 20. Qxf6 {[%clk 0:01:35.2]} 20... gxf6 {[%clk 0:02:01.1]}
21. g3 {[%clk 0:01:31.8]} 21... Rd7 {[%clk 0:02:00.4]} 22. Rd4 {[%clk
0:01:29.8]} 22... Rad8 {[%clk 0:01:58.9]} 23. Rfd1 {[%clk 0:01:29.2]} 23... Ne7
{[%clk 0:01:58.2]} 24. g4 {[%clk 0:01:17.5]} 24... Kf8 {[%clk 0:01:48.4]} 25.
Kg2 {[%clk 0:01:17.2]} 25... Ng6 {[%clk 0:01:45.7]} 26. Ne2 {[%clk 0:01:14.7]}
26... Re8 {[%clk 0:01:25.9]} 27. Kf3 {[%clk 0:01:09.7]} 27... Rde7 {[%clk
0:01:15.7]} 28. Ng3 {[%clk 0:01:03.8]} 28... d5 {[%clk 0:01:05.7]} 29. exd5
{[%clk 0:00:59]} 29... cxd5 {[%clk 0:00:55.5]} 30. R1d3 {[%clk 0:00:52.5]} 30...
Re1 {[%clk 0:00:52.8]} 31. Rxd5 {[%clk 0:00:50.5]} 31... Rg1 {[%clk 0:00:34.2]}
32. Kf2 {[%clk 0:00:34.2]} 32... Rc1 {[%clk 0:00:32.5]} 33. Rc3 {[%clk
0:00:27.4]} 33... Nxf4 {[%clk 0:00:31.5]} 34. Rd7 {[%clk 0:00:27.2]} 34... Nh3+
{[%clk 0:00:11.9]} 35. Kg2 {[%clk 0:00:25.7]} 35... Ng5 {[%clk 0:00:12.8]} 36.
Rcc7 {[%clk 0:00:20.2]} 36... Ree1 {[%clk 0:00:07.5]} 37. Rc8+ {[%clk
0:00:14.5]} 37... Kg7 {[%clk 0:00:07.4]} 38. Nf5+ {[%clk 0:00:14]} 38... Kg6
{[%clk 0:00:01.7]} 39. Rg8# {[%clk 0:00:14.9]} 1-0

[Event "Early-Titled-Tuesday-Blitz-October-17-2023"]
[Site "Chess.com"]
[Date "2023.10.17"]
[Round "9"]
[White "campochess"]
[Black "atalz0"]
[Result "0-1"]
[WhiteElo "2167"]
[BlackElo "2487"]
[TimeControl "180+1"]
[EndTime "9:48:21 PDT"]
[Termination "atalz0 won on time"]

1. d4 {[%clk 0:02:59.8]} 1... Nf6 {[%clk 0:02:59.6]} 2. Bg5 {[%clk 0:02:58.6]}
2... d5 {[%clk 0:02:59.5]} 3. Nd2 {[%clk 0:02:57.6]} 3... c5 {[%clk 0:02:58.3]}
4. Bxf6 {[%clk 0:02:53.3]} 4... gxf6 {[%clk 0:02:57.3]} 5. c3 {[%clk 0:02:52.3]}
5... cxd4 {[%clk 0:02:52.6]} 6. cxd4 {[%clk 0:02:51.2]} 6... Nc6 {[%clk
0:02:53.5]} 7. e3 {[%clk 0:02:51.1]} 7... Bf5 {[%clk 0:02:38.8]} 8. Bb5 {[%clk
0:02:48.4]} 8... Rc8 {[%clk 0:02:37.6]} 9. Ne2 {[%clk 0:02:47.8]} 9... a6 {[%clk
0:02:29.3]} 10. Bxc6+ {[%clk 0:02:46.5]} 10... Rxc6 {[%clk 0:02:30.2]} 11. Nc3
{[%clk 0:02:45.9]} 11... Rg8 {[%clk 0:02:15.2]} 12. Qf3 {[%clk 0:02:42.8]} 12...
e6 {[%clk 0:02:10.9]} 13. h3 {[%clk 0:02:41.6]} 13... Bb4 {[%clk 0:02:07.4]} 14.
Rc1 {[%clk 0:02:38.5]} 14... Qc7 {[%clk 0:01:54.5]} 15. O-O {[%clk 0:02:36.5]}
15... Bxc3 {[%clk 0:01:52.7]} 16. Rxc3 {[%clk 0:02:34.6]} 16... Rxc3 {[%clk
0:01:52.5]} 17. bxc3 {[%clk 0:02:34.4]} 17... Qxc3 {[%clk 0:01:53.1]} 18. Qf4
{[%clk 0:02:14.4]} 18... Kf8 {[%clk 0:00:51]} 19. Nb1 {[%clk 0:02:08.6]} 19...
Qb2 {[%clk 0:00:43.8]} 20. Qh6+ {[%clk 0:01:13.6]} 20... Ke7 {[%clk 0:00:42.9]}
21. Qf4 {[%clk 0:00:50.3]} 21... Bxb1 {[%clk 0:00:34.4]} 22. Qc7+ {[%clk
0:00:49.7]} 22... Kf8 {[%clk 0:00:34.5]} 23. Rc1 {[%clk 0:00:49.6]} 23... Bg6
{[%clk 0:00:25.6]} 24. Qd6+ {[%clk 0:00:31.1]} 24... Kg7 {[%clk 0:00:25.1]} 25.
Rc7 {[%clk 0:00:30.6]} 25... Qb1+ {[%clk 0:00:17.3]} 26. Kh2 {[%clk 0:00:29.1]}
26... Qxa2 {[%clk 0:00:16.2]} 27. f4 {[%clk 0:00:23.8]} 27... Qf2 {[%clk
0:00:14.8]} 28. Qxe6 {[%clk 0:00:23.4]} 28... Qh4 {[%clk 0:00:13.1]} 29. Qxd5
{[%clk 0:00:12]} 29... Kh8 {[%clk 0:00:12.9]} 30. Qf3 {[%clk 0:00:10]} 30... Qh5
{[%clk 0:00:10.4]} 31. Qxb7 {[%clk 0:00:07.2]} 31... Qf5 {[%clk 0:00:08]} 32.
Qf3 {[%clk 0:00:05.3]} 32... Qe4 {[%clk 0:00:06.9]} 33. Qxe4 {[%clk 0:00:04.7]}
33... Bxe4 {[%clk 0:00:07.8]} 34. Ra7 {[%clk 0:00:04.6]} 34... Rxg2+ {[%clk
0:00:07]} 35. Kh1 {[%clk 0:00:03.8]} 35... Kg7 {[%clk 0:00:04.9]} 0-1